bitfinex/quotes_SOLUSD_20251024
["timestamp","ask_amount","ask_price","bid_price","bid_amount"]
[1761327743968,36.22,191.48,191.45,0.67]
[1761327744175,39.76917393,191.48,191.45,0.67]
[1761327744360,3.54917393,191.47,191.45,0.67]
[1761327744558,39.76917393,191.48,191.45,0.67]
[1761327746683,3.54917393,191.47,191.45,0.67]
[1761327751984,39.76917393,191.48,191.45,0.67]
[1761327755082,3.54917393,191.47,191.45,0.67]
[1761327755981,4.22917393,191.46,191.42,0.87]
[1761327756285,41.44248077,191.48,191.42,0.87]
[1761327756286,3.54917393,191.45,191.43,0.67]
[1761327756682,3.54917393,191.46,191.43,0.67]
[1761327757176,3.54917393,191.45,191.43,0.67]
[1761327759788,4.22917393,191.44,191.42,0.2]
[1761327760085,3.54917393,191.44,191.42,0.2]
[1761327760990,3.54917393,191.43,191.42,0.2]
[1761327762486,4.22917393,191.43,191.42,0.2]
[1761327762889,3.54917393,191.43,191.42,0.2]
[1761327766693,2.27256931,191.43,191.42,0.2]
[1761327771883,7.49641092,191.43,191.42,0.2]
[1761327772798,36.22,191.45,191.42,0.86]
[1761327773102,41.44337425,191.45,191.42,0.86]
[1761327773400,41.44337425,191.45,191.43,0.66]
[1761327775882,43.71594356,191.45,191.43,0.66]
[1761327777099,41.44337425,191.45,191.43,0.66]
[1761327779203,43.71594356,191.45,191.43,0.66]
[1761327780406,41.44337425,191.45,191.43,0.66]
[1761327781319,41.44337425,191.45,191.42,0.2]
[1761327781506,41.44337425,191.45,191.42,0.9]
[1761327781895,44.40594356,191.45,191.42,0.2]
[1761327782617,44.40594356,191.45,191.42,0.9]
[1761327783806,43.71594356,191.45,191.43,0.7]
[1761327784906,41.44337425,191.45,191.43,0.7]
[1761327785399,5.22337425,191.45,191.43,0.7]
[1761327786010,43.71561096,191.46,191.43,0.7]
[1761327786598,41.44304165,191.46,191.43,0.7]
[1761327786792,5.22304165,191.46,191.44,14.99439674]
[1761327787204,5.22304165,191.46,191.45,0.7]
[1761327787892,5.22304165,191.46,191.45,15.69439674]
[1761327789688,5.22304165,191.46,191.45,14.99439674]
[1761327790409,7.49561096,191.46,191.45,14.99439674]
[1761327792699,5.22304165,191.46,191.45,15.69439674]
[1761327792915,43.69532359,191.47,191.45,15.69439674]
[1761327793088,2.27256931,191.46,191.45,14.99439674]
[1761327793285,2.96256931,191.46,191.45,14.99439674]
[1761327793712,2.27256931,191.46,191.45,14.99439674]
[1761327794103,7.49559239,191.46,191.45,14.99439674]
[1761327796613,8.18559239,191.46,191.45,14.99439674]
[1761327796925,8.18559239,191.46,191.42,0.2]
[1761327797097,2.27256931,191.44,191.43,14.99439674]
[1761327797802,2.96256931,191.44,191.43,14.99439674]
[1761327798016,2.96256931,191.44,191.42,0.2]
[1761327798216,18.28058079,191.46,191.42,0.2]
[1761327798217,39.16256931,191.43,191.42,0.2]
[1761327798824,44.38641092,191.43,191.42,0.2]
[1761327799696,43.69641092,191.43,191.42,0.2]
[1761327800997,43.69641092,191.43,191.42,0.85]
[1761327801195,7.49641092,191.43,191.42,0.85]
[1761327801516,43.69641092,191.43,191.42,0.2]
[1761327806532,44.38641092,191.43,191.42,0.2]
[1761327810015,55.26288613,191.43,191.42,0.2]
[1761327811107,78.14288613,191.43,191.42,0.2]
[1761327823328,30.37641092,191.43,191.42,0.88]
[1761327823536,66.57641092,191.43,191.42,0.2]
[1761327824039,67.29641092,191.43,191.42,0.2]
[1761327824243,66.57641092,191.43,191.42,0.2]
[1761327824613,67.29641092,191.43,191.42,0.2]
[1761327825850,66.57641092,191.43,191.42,0.2]
[1761327826023,67.29641092,191.43,191.42,0.2]
[1761327826351,78.17288613,191.43,191.42,0.2]
[1761327826821,79.4534696,191.43,191.42,0.2]
[1761327827930,75.90031682,191.43,191.42,0.2]
[1761327828136,79.4534696,191.43,191.42,0.2]
[1761327828937,75.90031682,191.43,191.42,0.2]
[1761327829238,79.4534696,191.43,191.42,0.2]
[1761327829435,78.7334696,191.43,191.42,0.2]
[1761327829846,79.4534696,191.43,191.42,0.2]
[1761327842772,79.4534696,191.43,191.42,0.87]
[1761327842773,38.98031682,191.43,191.42,0.87]
[1761327842950,31.65699439,191.43,191.42,0.87]
[1761327846168,31.65699439,191.43,191.42,0.2]
[1761327850386,102.2,191.44,191.42,0.87]
[1761327850604,4.39949448,191.46,191.42,0.87]
[1761327850877,36.2,191.46,191.43,6.09473086]
[1761327851254,36.2,191.46,191.44,0.67]
[1761327851473,3.55315278,191.49,191.44,0.67]
[1761327851657,39.75315278,191.49,191.44,13.9316769]
[1761327851976,3.55315278,191.48,191.44,13.9316769]
[1761327852163,3.55315278,191.46,191.45,0.67]
[1761327852561,3.55315278,191.47,191.45,0.67]
[1761327853279,3.55315278,191.47,191.46,13.2616769]
[1761327853776,3.55315278,191.47,191.46,13.9316769]
[1761327854474,5.22222237,191.49,191.46,13.9316769]
[1761327854677,3.55315278,191.5,191.46,13.9316769]
[1761327854678,41.42194965,191.5,191.47,0.67]
[1761327854852,36.2,191.5,191.47,0.67]
[1761327855050,64.30191478,191.51,191.47,0.67]
[1761327855251,67.85506756,191.51,191.47,0.67]
[1761327855557,67.85506756,191.51,191.48,13.2616769]
[1761327856062,67.85506756,191.51,191.49,0.67]
[1761327856790,67.85506756,191.51,191.45,8.77640755]
[1761327856791,4.22315278,191.5,191.46,0.67]
[1761327857074,3.55315278,191.47,191.46,0.67]
[1761327857849,8.77590308,191.47,191.46,0.67]
[1761327859579,44.97590308,191.47,191.46,0.67]
[1761327860856,44.97590308,191.47,191.46,13.9316769]
[1761327861583,41.42248221,191.48,191.46,13.9316769]
[1761327861782,41.42248221,191.48,191.47,0.7]
[1761327862282,41.42248221,191.48,191.47,13.9616769]
[1761327863989,5.22248221,191.48,191.47,13.9616769]
[1761327866086,39.73315278,191.49,191.47,13.9616769]
[1761327866282,44.95549301,191.49,191.48,0.7]
[1761327870183,44.95549301,191.49,191.48,5.92351501]
[1761327873269,41.40234023,191.49,191.48,5.92351501]
[1761327873469,44.95549301,191.49,191.48,5.92351501]
[1761327874169,8.77549301,191.49,191.48,5.92351501]
[1761327874484,44.95549301,191.49,191.48,5.92351501]
[1761327874790,8.77549301,191.49,191.48,5.92351501]
[1761327875085,44.95549301,191.49,191.48,5.92351501]
[1761327878986,44.95549301,191.49,191.44,0.7]
[1761327878987,45.64549301,191.49,191.44,0.7]
[1761327879188,3.55315278,191.45,191.42,0.9]
[1761327879491,36.18,191.44,191.42,0.2]
[1761327879697,36.18,191.43,191.42,0.9]
[1761327879871,36.18,191.43,191.42,2.9925427]
[1761327880574,39.73315278,191.43,191.42,2.9925427]
[1761327882480,39.73315278,191.44,191.42,2.9925427]
[1761327882681,39.73315278,191.44,191.43,0.7]
[1761327883182,44.95672152,191.44,191.43,0.7]
[1761327886820,8.77672152,191.44,191.43,0.7]
[1761327887025,44.95672152,191.44,191.43,0.7]
[1761327888733,43.67606257,191.44,191.43,0.7]
[1761327892834,43.67606257,191.44,191.42,0.2]
[1761327893128,2.27249383,191.43,191.42,0.2]
[1761327894310,7.49633544,191.43,191.42,0.2]
[1761327894538,7.49633544,191.43,191.42,0.9]
[1761327895030,41.40358306,191.44,191.42,0.9]
[1761327895209,2.27249383,191.43,191.42,0.9]
[1761327895824,2.27249383,191.43,191.42,0.2]
[1761327896032,2.27249383,191.43,191.42,0.9]
[1761327896330,7.49633544,191.43,191.42,0.9]
[1761327897126,7.49633544,191.43,191.42,0.2]
[1761327897323,7.49633544,191.43,191.42,0.87]
[1761327898232,43.67633544,191.43,191.42,0.87]
[1761327899228,43.67633544,191.43,191.42,0.2]
[1761327900235,7.49633544,191.43,191.42,0.2]
[1761327900432,43.67633544,191.43,191.42,0.2]
[1761327901148,22.88,191.46,191.42,0.87]
[1761327901346,36.18,191.45,191.42,0.87]
[1761327901716,23.58,191.46,191.42,0.87]
[1761327901924,36.18,191.45,191.42,0.87]
[1761327902522,5.22356874,191.44,191.42,0.87]
[1761327902822,36.18,191.43,191.42,0.87]
[1761327903540,5.22356874,191.44,191.42,0.87]
[1761327903733,36.18,191.43,191.42,0.87]
[1761327904029,36.18,191.43,191.42,0.2]
[1761327904435,28.10324666,191.46,191.42,0.2]
[1761327904634,5.22324666,191.46,191.43,0.67]
[1761327904856,36.18,191.45,191.43,0.67]
[1761327905139,36.18,191.47,191.43,0.67]
[1761327905340,36.18,191.47,191.44,5.42407766]
[1761327905938,36.18,191.47,191.45,0.67]
[1761327907016,17.4522307,191.54,191.45,2.94249383]
[1761327907230,5.22063221,191.55,191.49,2.27249383]
[1761327907423,43.67312604,191.55,191.49,2.27249383]
[1761327907621,41.40063221,191.55,191.5,0.67]
[1761327908742,36.18,191.55,191.5,8.16439519]
[1761327909239,41.40059008,191.55,191.51,0.67]
[1761327909942,2.97249383,191.54,191.49,0.67]
[1761327910117,43.67308391,191.55,191.49,2.27249383]
[1761327910321,36.18,191.55,191.5,2.94249383]
[1761327910525,36.18,191.55,191.51,2.94249383]
[1761327911032,36.18,191.55,191.52,0.67]
[1761327911232,41.4006592,191.55,191.52,0.67]
[1761327913131,23.92576286,191.59,191.52,0.67]
[1761327913132,2.27249383,191.59,191.53,2.27249383]
[1761327913435,36.18,191.59,191.54,2.27249383]
[1761327913634,7.49093987,191.63,191.57,2.27249383]
[1761327913837,36.18,191.62,191.57,2.27249383]
[1761327914043,2.27249383,191.59,191.56,0.67]
[1761327914230,2.27249383,191.58,191.54,0.67]
[1761327914429,2.27249383,191.57,191.54,0.67]
[1761327915021,2.27249383,191.58,191.54,0.67]
[1761327915328,2.27249383,191.58,191.54,5.890746]
[1761327915532,5.21945217,191.6,191.54,5.890746]
[1761327915724,2.27249383,191.59,191.55,0.67]
[1761327916847,7.49206996,191.59,191.55,0.67]
[1761327918045,5.21957613,191.59,191.55,0.67]
[1761327918225,7.49206996,191.59,191.55,0.67]
[1761327918846,2.27249383,191.58,191.54,0.67]
[1761327919030,2.27249383,191.58,191.55,0.67]
[1761327919629,7.49206996,191.59,191.55,0.67]
[1761327920745,8.16206996,191.59,191.55,0.67]
[1761327921350,7.49206996,191.59,191.55,0.67]
[1761327922731,5.21957613,191.59,191.55,0.67]
[1761327923352,7.49206996,191.59,191.55,0.67]
[1761327924349,5.21957613,191.59,191.55,0.67]
[1761327925950,5.21920668,191.6,191.55,0.67]
[1761327926146,43.65170051,191.6,191.55,0.67]
[1761327926448,41.37920668,191.6,191.55,2.94249383]
[1761327926843,41.37920668,191.6,191.56,0.72]
[1761327926844,36.16,191.6,191.56,0.72]
[1761327927147,36.16,191.6,191.56,2.99249383]
[1761327927355,36.16,191.61,191.56,2.99249383]
[1761327927535,36.16,191.61,191.57,0.72]
[1761327928044,41.3790655,191.61,191.57,0.72]
[1761327928233,43.65155933,191.61,191.57,0.72]
[1761327928436,44.32155933,191.61,191.57,0.72]
[1761327928950,42.0490655,191.61,191.57,0.72]
[1761327929152,43.65155933,191.61,191.57,0.72]
[1761327934459,2.27249383,191.59,191.55,0.72]
[1761327935556,55.09640123,191.61,191.55,0.72]
[1761327935557,43.65155933,191.61,191.55,2.99249383]
[1761327935757,41.3790655,191.61,191.56,2.27249383]
[1761327935962,41.3790655,191.61,191.56,2.99249383]
[1761327936141,41.3790655,191.61,191.57,0.72]
[1761327938561,36.16,191.61,191.57,2.99249383]
[1761327938749,41.37870263,191.62,191.58,2.99249383]
[1761327938952,10.87647521,191.67,191.61,2.27249383]
[1761327939169,2.27249383,191.71,191.64,2.27249383]
[1761327939464,36.16,191.71,191.62,0.72]
[1761327939648,36.83,191.71,191.62,0.72]
[1761327940049,2.27249383,191.7,191.64,2.27249383]
[1761327940256,2.94249383,191.7,191.64,2.27249383]
[1761327940469,2.94249383,191.7,191.65,0.72]
[1761327940666,5.21675622,191.69,191.65,0.72]
[1761327941748,5.21675622,191.69,191.6,0.72]
[1761327941749,2.27249383,191.66,191.6,0.72]
[1761327941955,2.27249383,191.67,191.61,2.99249383]
[1761327942168,39.08249383,191.68,191.61,2.99249383]
[1761327942350,39.08249383,191.68,191.62,0.72]
[1761327942674,5.21730056,191.67,191.62,0.72]
[1761327942971,7.48979439,191.67,191.62,0.72]
[1761327943371,0.67,191.66,191.62,0.72]
[1761327943549,0.67,191.66,191.6,0.72]
[1761327943550,2.27249383,191.65,191.6,0.72]
[1761327944565,2.94249383,191.65,191.6,0.72]
[1761327945686,2.27249383,191.65,191.6,0.72]
[1761327946200,8.16041973,191.65,191.6,0.72]
[1761327946483,2.94249383,191.64,191.6,0.72]
[1761327946660,2.27249383,191.64,191.6,0.72]
[1761327946855,2.94249383,191.64,191.58,31.09222582]
[1761327947055,2.94249383,191.64,191.55,15.67766716]
[1761327947056,2.27249383,191.63,191.59,0.72]
[1761327947267,2.27249383,191.63,191.55,38.55766716]
[1761327947268,2.27249383,191.61,191.56,0.72]
[1761327947701,2.94249383,191.62,191.56,2.99249383]
[1761327947887,2.27249383,191.62,191.56,2.99249383]
[1761327948182,2.27249383,191.62,191.57,0.72]
[1761327948481,5.21893429,191.61,191.57,0.72]
[1761327951674,5.21866193,191.62,191.57,0.72]
[1761327952076,5.21866193,191.62,191.57,5.93998495]
[1761327952284,5.21866193,191.62,191.57,9.48396306]
[1761327952599,8.7623872,191.63,191.58,0.68]
[1761327955495,5.21760484,191.66,191.61,3.54397811]
[1761327955882,5.21760484,191.66,191.62,0.68]
[1761327956974,8.76158295,191.66,191.62,0.68]
[1761327957289,0.7,191.68,191.62,0.68]
[1761327957495,8.76120254,191.68,191.62,9.44262735]
[1761327957701,3.54397811,191.68,191.62,9.44262735]
[1761327957880,39.68397811,191.69,191.63,4.22397811]
[1761327958191,5.21703528,191.68,191.63,0.68]
[1761327958402,5.21703528,191.68,191.64,0.68]
[1761327958699,8.76101339,191.68,191.64,0.68]
[1761327962386,5.92741829,191.67,191.62,9.44263835]
[1761327962591,5.21741829,191.67,191.63,0.68]
[1761327963709,8.76100649,191.68,191.63,0.68]
[1761327963911,9.47100649,191.68,191.63,0.68]
[1761327964507,5.21702838,191.68,191.63,0.68]
[1761327964709,8.76100649,191.68,191.63,0.68]
[1761327965014,9.47100649,191.68,191.63,0.68]
[1761327965727,8.76100649,191.68,191.63,0.68]
[1761327966315,5.21702838,191.68,191.63,0.68]
[1761327966519,8.76100649,191.68,191.63,0.68]
[1761327967116,9.47100649,191.68,191.63,0.68]
[1761327967422,28.09669241,191.7,191.63,5.89827389]
[1761327967627,32.35067052,191.7,191.64,3.54397811]
[1761327967810,32.35067052,191.7,191.64,4.22397811]
[1761327968006,4.25397811,191.69,191.63,5.21827389]
[1761327968204,3.54397811,191.68,191.63,0.68]
[1761327968410,3.54397811,191.67,191.64,0.68]
[1761327969318,8.76100649,191.68,191.64,0.68]
[1761327970927,9.47100649,191.68,191.64,0.68]
[1761327971115,4.25397811,191.67,191.62,5.89858569]
[1761327971318,9.47132251,191.67,191.63,0.68]
[1761327971516,8.76132251,191.67,191.63,0.68]
[1761327972629,5.2173444,191.67,191.63,0.68]
[1761327973006,8.76108211,191.68,191.63,5.89834148]
[1761327973418,8.76108211,191.68,191.64,0.68]
[1761327974709,8.76130285,191.67,191.64,0.68]
[1761327977233,5.21732474,191.67,191.64,0.68]
[1761327977432,8.76104392,191.68,191.64,0.68]
[1761327978262,3.54397811,191.67,191.64,0.68]
[1761327978648,8.76136941,191.67,191.64,0.68]
[1761327980644,8.76136941,191.67,191.57,0.71]
[1761327980645,3.54397811,191.65,191.57,0.71]
[1761327980823,3.54397811,191.6,191.57,0.71]
[1761327981028,3.54397811,191.59,191.57,0.71]
[1761327981334,3.54397811,191.61,191.57,0.71]
[1761327982447,3.54397811,191.62,191.57,9.47396538]
[1761327982854,3.54397811,191.62,191.58,0.71]
[1761327983047,3.54397811,191.63,191.58,0.71]
[1761327983847,36.14,191.64,191.59,5.21947909]
[1761327984050,3.54397811,191.64,191.59,5.21947909]
[1761327984218,3.54397811,191.64,191.6,0.71]
[1761327984829,5.21757278,191.66,191.6,0.71]
[1761327985124,3.54397811,191.64,191.6,0.71]
[1761327985825,8.76215909,191.64,191.6,0.71]
[1761327986243,5.21818098,191.64,191.6,0.71]
[1761327986446,8.76215909,191.64,191.6,0.71]
[1761327986654,5.21784503,191.65,191.6,0.71]
[1761327986948,3.54397811,191.64,191.6,0.71]
[1761327987324,3.54397811,191.63,191.6,0.71]
[1761327989241,3.54397811,191.63,191.6,0.71]
[1761327991158,8.76237246,191.63,191.6,0.71]
[1761327993559,3.54397811,191.62,191.6,0.71]
[1761327994140,4.21397811,191.61,191.56,5.22004993]
[1761327994342,3.54397811,191.59,191.56,0.71]
[1761327994958,8.76320418,191.6,191.56,0.71]
[1761327995561,8.76320418,191.6,191.56,5.93027104]
[1761327995738,8.76320418,191.6,191.57,0.71]
[1761327998662,3.54397811,191.6,191.57,0.71]
[1761328000461,8.76298044,191.61,191.57,0.71]
[1761328002766,3.54397811,191.61,191.57,0.71]
[1761328005465,8.76303627,191.61,191.57,0.71]
[1761328005688,3.54397811,191.58,191.5,5.21866193]
[1761328005842,3.54397811,191.51,191.5,5.21866193]
[1761328006350,3.54397811,191.51,191.48,0.71]
[1761328006654,3.54397811,191.49,191.48,0.71]
[1761328006858,3.54397811,191.5,191.48,0.71]
[1761328007562,8.76574247,191.51,191.48,0.71]
[1761328008165,3.54397811,191.5,191.48,0.71]
[1761328008967,3.54397811,191.49,191.48,0.71]
[1761328009153,3.54397811,191.5,191.48,0.71]
[1761328009854,8.76604566,191.5,191.48,0.71]
[1761328010969,7.4929505,191.5,191.48,0.71]
[1761328011551,2.27088295,191.49,191.48,0.71]
[1761328013567,2.27088295,191.49,191.46,0.71]
[1761328014371,7.49321133,191.49,191.46,0.71]
[1761328014573,2.27088295,191.48,191.46,0.71]
[1761328014791,2.27088295,191.47,191.46,0.71]
[1761328017874,2.27088295,191.47,191.43,5.42371137]
[1761328018172,2.27088295,191.47,191.44,0.71]
[1761328018674,2.27088295,191.46,191.44,0.71]
[1761328020673,2.27088295,191.45,191.43,5.42371137]
[1761328020859,2.27088295,191.45,191.43,6.13371137]
[1761328021254,2.27088295,191.45,191.43,0.91]
[1761328022276,2.27088295,191.47,191.44,0.71]
[1761328022460,2.27088295,191.46,191.44,0.71]
[1761328024474,2.27088295,191.45,191.44,0.71]
[1761328026392,2.27088295,191.46,191.44,0.71]
[1761328031462,2.27088295,191.46,191.43,5.42382735]
[1761328031663,2.27088295,191.46,191.43,6.13382735]
[1761328031972,2.27088295,191.45,191.43,0.91]
[1761328032581,2.27088295,191.44,191.43,0.2]
[1761328034572,8.21445169,191.44,191.43,0.2]
[1761328035991,7.49445169,191.44,191.43,0.2]
[1761328037190,42.16356874,191.44,191.43,0.2]
[1761328037376,44.43445169,191.44,191.43,0.2]
[1761328038175,55.3109269,191.44,191.43,0.2]
[1761328041282,55.3109269,191.44,191.42,0.2]
[1761328041483,31.09472456,191.43,191.42,0.2]
[1761328043799,28.82384161,191.43,191.42,0.2]
[1761328043974,31.09472456,191.43,191.42,0.2]
[1761328045904,102.2,191.42,191.39,0.2]
[1761328046078,38.29824111,191.4,191.39,0.2]
[1761328046279,39.01824111,191.4,191.39,0.2]
[1761328047003,2.27088295,191.39,191.38,0.2]
[1761328047174,8.21581633,191.39,191.38,0.2]
[1761328052887,5.22493338,191.39,191.38,0.2]
[1761328053082,2.27088295,191.39,191.38,0.91]
[1761328053285,38.51088295,191.39,191.38,0.91]
[1761328055415,43.73581633,191.39,191.38,0.91]
[1761328057523,41.46493338,191.39,191.38,0.91]
[1761328059514,43.73581633,191.39,191.38,0.91]
[1761328059903,41.46493338,191.39,191.38,0.91]
[1761328060109,43.73581633,191.39,191.38,0.91]
[1761328062015,22.88,191.35,191.33,0.2]
[1761328062209,33.75647521,191.3,191.28,0.2]
[1761328062393,33.75647521,191.3,191.27,0.2]
[1761328062394,10.87647521,191.28,191.27,0.2]
[1761328062601,36.02735816,191.25,191.24,0.2]
[1761328062910,22.88,191.24,191.18,0.2]
[1761328063090,36.4,191.28,191.21,2.27088295]
[1761328063291,36.4,191.34,191.23,5.42928925]
[1761328063487,2.27088295,191.3,191.25,2.27088295]
[1761328063900,2.27088295,191.3,191.26,0.71]
[1761328064406,2.27088295,191.3,191.26,5.93847303]
[1761328064918,2.27088295,191.3,191.27,0.71]
[1761328065414,2.27088295,191.29,191.27,0.71]
[1761328066510,2.27088295,191.3,191.27,0.71]
[1761328067392,7.49830409,191.3,191.27,0.71]
[1761328068912,2.27088295,191.28,191.24,0.71]
[1761328069112,2.27088295,191.25,191.24,0.71]
[1761328069311,2.27088295,191.25,191.23,0.2]
[1761328069312,62.21088295,191.25,191.23,0.2]
[1761328069527,13.76735816,191.24,191.22,0.2]
[1761328069830,2.27088295,191.23,191.22,0.2]
[1761328070812,2.89088295,191.23,191.22,0.2]
[1761328071010,67.54018797,191.23,191.22,0.2]
[1761328071611,22.88,191.23,191.22,0.2]
[1761328071820,61.69088295,191.23,191.22,0.91]
[1761328072206,66.92018797,191.23,191.22,0.91]
[1761328072429,66.92018797,191.23,191.22,0.2]
[1761328072824,68.20857757,191.23,191.22,0.2]
[1761328073224,79.70505278,191.23,191.22,0.2]
[1761328073804,79.08505278,191.23,191.22,0.2]
[1761328074250,5.2279381,191.28,191.22,0.91]
[1761328074407,3.55927255,191.26,191.22,0.91]
[1761328074615,3.55927255,191.28,191.23,4.26927255]
[1761328074917,3.55927255,191.28,191.23,0.71]
[1761328075119,3.55927255,191.28,191.24,0.71]
[1761328075323,36.62,191.29,191.24,0.71]
[1761328075539,3.55927255,191.28,191.24,0.71]
[1761328075708,40.17927255,191.29,191.24,0.71]
[1761328076129,45.40696828,191.29,191.24,0.71]
[1761328077437,40.17927255,191.29,191.24,5.93886384]
[1761328077937,40.17927255,191.29,191.25,0.7]
[1761328078127,3.55927255,191.29,191.25,0.7]
[1761328078323,36.62,191.28,191.25,0.7]
[1761328080539,22.88,191.31,191.25,5.92875001]
[1761328080540,40.15927255,191.3,191.25,5.92875001]
[1761328081032,40.15927255,191.3,191.26,0.7]
[1761328081033,36.6,191.3,191.26,0.7]
[1761328081630,22.88,191.31,191.27,3.55927255]
[1761328081831,36.62,191.33,191.29,3.55927255]
[1761328082239,36.62,191.33,191.3,0.7]
[1761328082555,36.62,191.36,191.31,3.55927255]
[1761328083019,45.40502825,191.36,191.32,0.7]
[1761328083222,40.17927255,191.36,191.32,0.7]
[1761328083623,36.62,191.36,191.32,0.7]
[1761328084130,3.55927255,191.34,191.32,0.7]
[1761328084337,36.62,191.33,191.32,0.7]
[1761328084845,40.17927255,191.33,191.32,0.7]
[1761328085220,36.6,191.33,191.32,0.7]
[1761328089870,105.75927255,191.38,191.32,9.48609698]
[1761328090071,36.58,191.36,191.32,5.92682443]
[1761328090287,36.58,191.36,191.33,0.7]
[1761328092078,3.55927255,191.37,191.33,5.92650469]
[1761328092280,40.13927255,191.36,191.33,0.7]
[1761328092466,40.13927255,191.36,191.34,0.7]
[1761328094392,40.13927255,191.36,191.3,3.55927255]
[1761328094683,40.13927255,191.36,191.1,11.54585988]
[1761328094684,3.55927255,191.31,191.28,0.7]
[1761328094857,0.62,191.35,191.28,0.7]
[1761328094858,3.55927255,191.3,191.28,0.7]
[1761328095059,40.13927255,191.31,191.28,0.7]
[1761328095494,3.55927255,191.34,191.28,4.25927255]
[1761328095795,36.58,191.34,191.29,3.55927255]
[1761328095999,36.58,191.34,191.29,4.25927255]
[1761328096158,36.58,191.34,191.3,0.7]
[1761328096353,36.58,191.34,191.3,5.92732637]
[1761328096576,3.55927255,191.32,191.3,0.7]
[1761328096863,40.13927255,191.31,191.26,0.7]
[1761328097075,3.55927255,191.29,191.25,22.88]
[1761328097263,40.13927255,191.3,191.26,0.7]
[1761328097583,5.22634088,191.34,191.26,0.7]
[1761328097758,3.55927255,191.32,191.26,4.25927255]
[1761328098160,3.55927255,191.32,191.27,0.7]
[1761328098484,3.55927255,191.31,191.28,5.2279381]
[1761328098868,3.55927255,191.31,191.29,0.7]
[1761328099058,3.55927255,191.32,191.29,0.7]
[1761328099265,3.55927255,191.31,191.29,0.7]
[1761328100076,3.55927255,191.32,191.29,0.7]
[1761328101683,3.55927255,191.31,191.29,0.7]
[1761328102388,3.55927255,191.3,191.27,0.66]
[1761328102868,3.55927255,191.3,191.27,5.8881982]
[1761328105467,3.55927255,191.3,191.27,0.66]
[1761328105991,3.55927255,191.3,191.27,5.88818919]
[1761328106293,3.55927255,191.31,191.27,5.88818919]
[1761328106484,3.55927255,191.31,191.28,0.66]
[1761328107688,3.55927255,191.31,191.28,5.88777351]
[1761328107889,36.54,191.31,191.29,0.66]
[1761328108275,40.09927255,191.33,191.29,0.66]
[1761328108682,3.55927255,191.32,191.29,0.66]
[1761328108888,3.55927255,191.3,191.24,22.88]
[1761328109193,3.55927255,191.27,191.25,0.66]
[1761328110373,5.2278402,191.29,191.25,0.66]
[1761328110374,5.84684507,191.32,191.25,5.88873567]
[1761328110574,3.55927255,191.29,191.25,5.88873567]
[1761328110774,3.55927255,191.29,191.26,0.66]
[1761328111600,3.55927255,191.29,191.26,5.88844248]
[1761328112093,3.55927255,191.29,191.27,0.66]
[1761328112399,3.55927255,191.28,191.27,0.66]
[1761328112707,3.55927255,191.32,191.27,5.88821142]
[1761328113008,3.55927255,191.31,191.27,5.88821142]
[1761328113195,3.55927255,191.31,191.28,0.66]
[1761328113598,3.55927255,191.3,191.28,0.66]
[1761328113773,3.55927255,191.32,191.28,0.66]
[1761328114396,8.78614623,191.32,191.28,0.66]
[1761328114782,41.76660249,191.33,191.28,5.88792151]
[1761328115189,41.76660249,191.33,191.29,0.66]
[1761328119291,8.74268937,191.32,191.29,0.66]
[1761328120181,5.22688649,191.32,191.29,0.66]
[1761328123202,3.51811835,191.31,191.29,0.66]
[1761328123584,3.51811835,191.32,191.29,0.66]
[1761328123896,3.51824375,191.31,191.29,0.66]
[1761328124091,3.51824375,191.32,191.29,0.66]
[1761328124295,3.51824375,191.31,191.29,0.66]
[1761328124491,3.51824375,191.32,191.29,0.66]
[1761328124696,3.51824375,191.31,191.29,0.66]